Cogmind - Beta 14 @@@ ROGUE MODE // 2025.04.23 @ 15:56:18 // Winter2019/RPGLIKE Player: EREBUS79 Result: Destroyed by Y-54 Guardian with Flak Gun Performance ------------- Evolutions (0) 0 Regions Visited (3) 600 Robots Destroyed (35) 175 Value Destroyed (1112) 1112 Prototype IDs (6) 120 Alien Tech Used (0) 0 Bonus (24) 24 TOTAL SCORE: 2031 Bonus ------- High Alert Combat Kills 24 Cogmind --------- Core Integrity 0/600 Matter 206/300 Energy 238/250 System Corruption 0% Temperature Warm (144) Movement Rolling (95) Location -7/Recycling Parts ------- > --- POWER (1) -------- Ion Engine > --- PROPULSION (2) --- Wheel Subdweller Monowheel > --- UTILITY (4) ------ Improved Terrain Scanner Seismic Detector ECM Suite Tractor Beam > --- WEAPON (4) ------- EM Pulse Gun Medium Laser Assault Rifle Rocket Launcher > --- INVENTORY (0) ---- (None) Peak State ------------ > --- POWER ------------ Ion Engine > --- PROPULSION ------- Wheel Subdweller Monowheel > --- UTILITY ---------- Improved Terrain Scanner Seismic Detector ECM Suite Tractor Beam > --- WEAPON ----------- EM Pulse Gun Medium Laser Assault Rifle Rocket Launcher > --- INVENTORY -------- (None) [Rating: 15] Favorites ----------- Power Ion Engine Engine Ion Engine Propulsion Wheel Wheel Wheel Utility Improved Terrain Scanner Device Improved Terrain Scanner Weapon Assault Rifle Energy Gun EM Pulse Gun Ballistic Gun Assault Rifle Launcher Rocket Launcher Slashing Weapon Mining Claw Build | -11 -10 -10 -7 ------- Run | Yrd Mat Sub Rec Slots Evolved 7 | 4 2 1 . Power . | . . . . Propulsion 1 | . . 1 . Utility 3 | 1 2 . . Weapon 3 | 3 . . . Parts Attached 16 | 7 8 1 . Power 1 | 1 . . . Engine 1 | 1 . . . Core . | . . . . Reactor . | . . . . Propulsion 2 | 1 . 1 . Treads . | . . . . Leg . | . . . . Wheel 2 | 1 . 1 . Hover . | . . . . Flight . | . . . . Utility 5 | 2 3 . . Device 5 | 2 3 . . Storage . | . . . . Processor . | . . . . Hackware . | . . . . Protection . | . . . . Artifact . | . . . . Weapon 8 | 3 5 . . Energy Gun 2 | . 2 . . Energy Cannon . | . . . . Ballistic Gun 3 | 3 . . . Ballistic Cannon . | . . . . Launcher 2 | . 2 . . Special Weapon . | . . . . Impact Weapon . | . . . . Slashing Weapon 1 | . 1 . . Piercing Weapon . | . . . . Special Melee Weapon . | . . . . Unidentified Prototypes . | . . . . Parts Lost . | . . . . Power . | . . . . Propulsion . | . . . . Utility . | . . . . Weapon . | . . . . Highest Loss Streak . | . . . . To Critical Strikes . | . . . . Average Slot Usage (%) 98 | . 98 99 100 Engine 11 | . 11 9 9 Wheel 13 | . 11 17 18 Device 28 | . 25 36 36 Energy Gun 15 | . 14 18 18 Ballistic Gun 18 | . 21 9 9 Launcher 8 | . 8 9 9 Slashing Weapon 1 | . 2 . . Peak Build Rating 15 | 9 13 15 15 Average Rating 11 | 5 10 14 15 On Entrance 9 | . 9 13 15 Naked Turns . | . . . . Heaviest Build 20 | 12 20 20 20 Greatest Support 40 | 10 20 40 40 Greatest Overweight (x) 1 | 1 1 . . Average Overweight (x) . | . . . . Largest Inventory Capacity . | . . . . Average Capacity . | . . . . Most Carried . | . . . . Average Carried . | . . . . Final Capacity . | . . . . Final Carried . | . . . . Class Distribution -------------------- 100% | Gunner Dominant Class ---------------- Gunner | -10/Materials Gunner | -10/Subcaves Gunner | -7/Recycling Resources | -11 -10 -10 -7 ----------- Run | Yrd Mat Sub Rec Matter Collected 1282 | 209 754 319 . Remotely 319 | . . 319 . Salvage Created 1011 | 130 556 325 . Parts 73 | 9 36 28 . Haulers Intercepted 1 | . 1 . . Recyclers Shooed 1 | . 1 . . Parts Field Recycled . | . . . . Retrieved Matter . | . . . . Parts Self-Destructed 10 | . . 10 . Prevented . | . . . . Kills | -11 -10 -10 -7 ------- Run | Yrd Mat Sub Rec Combat Hostiles Destroyed 20 | . 11 9 . Guns 16 | . 8 8 . AOE 4 | . 3 1 . Classes Destroyed 9 | 2 5 2 . Worker 1 | . 1 . . Tunneler 5 | 4 1 . . Hauler 1 | . 1 . . Recycler 3 | 1 2 . . Turret 2 | . . 2 . Watcher 3 | . 3 . . Swarmer 7 | . 3 4 . Grunt 8 | . 8 . . Subdweller 5 | . . 5 . Best Kill Streak 6 | 5 4 6 . Combat Bots Only 4 | . 3 4 . Max Kills in Single Turn 3 | 1 3 1 . Gunslinging 1 | . 1 . . Exploded 1 | . 1 1 . Melee . | . . . . Uniques/NPCs Destroyed . | . . . . Combat | -11 -10 -10 -7 -------- Run | Yrd Mat Sub Rec Hostile Shots Fired 149 | . 45 77 27 Missed 56 | . 10 36 10 Damage Taken 1072 | . 492 399 181 Core 861 | . 402 318 141 Absorbed by Shields . | . . . . Redirected to Core 665 | . 296 246 123 Core Remaining (%) 100 | 100 . . . Volleys Fired 126 | 15 77 29 5 Largest 4 | 3 4 4 4 Hottest 143 | 60 143 143 143 Shots Fired 397 | 45 241 93 18 Gun 357 | 45 210 87 15 Cannon . | . . . . Launcher 40 | . 31 6 3 Special . | . . . . Kinetic 224 | 45 145 29 5 Thermal 62 | . 28 29 5 Explosive 40 | . 31 6 3 Electromagnetic 71 | . 37 29 5 Robot Hit Streak 23 | 5 9 23 12 Robot Miss Streak 5 | 2 5 2 1 Penetration Max . | . . . . Secondary Targets 4 | . 3 1 . Max Gunslinging Chain 1 | . 1 1 . Shots Hit Robots 142 | 18 57 62 5 Core Hits 72 | 6 34 30 2 Critical Kills . | . . . . Critical Parts Destroyed . | . . . . Critical Strikes 1 | . . 1 . Burn 1 | . . 1 . Melee Attacks 6 | . 6 . . Impact . | . . . . Slashing 6 | . 6 . . Piercing . | . . . . Sneak Attacks 1 | . 1 . . Combat Hostiles . | . . . . Follow-up Attacks . | . . . . Damage Inflicted 2488 | 243 1182 958 105 Guns 1739 | 243 709 730 57 Cannons . | . . . . Explosions 703 | . 427 228 48 Melee 46 | . 46 . . Ramming . | . . . . Kinetic 1065 | 243 588 223 11 Thermal 376 | . 39 264 73 Explosive 655 | . 427 228 . Electromagnetic 346 | . 82 243 21 Impact . | . . . . Slashing 46 | . 46 . . Piercing . | . . . . Highest Corruption . | . . . . Average Corruption . | . . . . Corruption Purged . | . . . . Corruption Blocked . | . . . . Overload Shots . | . . . . Overflow Damage 15 | . 15 . . Projectiles . | . . . . Explosions 15 | . 15 . . Melee . | . . . . Knockbacks . | . . . . Impact . | . . . . Kinetic . | . . . . Secondary . | . . . . Self-Inflicted Damage 87 | . 24 . 63 Shots 2 | . 1 . 1 Rammed . | . . . . Targets Rammed . | . . . . Kicked . | . . . . Crushed . | . . . . Highest Temperature 316 | . 316 134 132 Average Temperature 60 | . 63 45 59 Received Heat Transfer 477 | . 273 168 36 Siege Activations . | . . . . Robots Corrupted . | . . . . Combat Hostiles . | . . . . Parts Fried . | . . . . Impact Corruptions . | . . . . Robots Melted . | . . . . Combat Hostiles . | . . . . Parts Melted 1 | . . 1 . Heat Transferred 1086 | . 111 851 124 Parts Sabotaged . | . . . . Parts Stolen . | . . . . Parts Stripped . | . . . . Power Chain Reactions 1 | . . . 1 Alert | -11 -10 -10 -7 ------- Run | Yrd Mat Sub Rec Peak Influence 791 | 25 791 . 254 Initial 182 | . 16 . 182 Average 431 | 10 472 . 211 Maximum Alert Level 3 | . 3 . 1 Low Security (%) 34 | 100 30 . 40 Level 1 12 | . 10 . 59 Level 2 20 | . 23 . . Level 3 32 | . 36 . . Level 4 . | . . . . Level 5 . | . . . . High Security . | . . . . Max Security . | . . . . Squads Dispatched 1 | . 1 . . Investigation . | . . . . Extermination . | . . . . Reinforcement 1 | . 1 . . Assault . | . . . . Garrison . | . . . . Intercept . | . . . . Searches Triggered . | . . . . Construction Impeded . | . . . . Haulers Reinforced . | . . . . Active Scanning Responses . | . . . . Cargo Convoy Interrupts . | . . . . Stealth | -11 -10 -10 -7 --------- Run | Yrd Mat Sub Rec Distress Signals 1 | . 1 . . Communications Jammed . | . . . . Distress Signals . | . . . . Times Spotted 34 | . 20 13 1 Peak Tracking Total 6 | . 4 6 1 Tactical Retreats 1 | . . 1 . Traps | -11 -10 -10 -7 ------- Run | Yrd Mat Sub Rec Traps Triggered . | . . . . Indirectly . | . . . . Trap Hack Attempts . | . . . . Triggered . | . . . . Disarmed . | . . . . Reprogrammed . | . . . . Reused . | . . . . Traps Extracted . | . . . . Installed . | . . . . Triggered . | . . . . Machines | -11 -10 -10 -7 ---------- Run | Yrd Mat Sub Rec Machines Disabled 41 | . 36 3 2 Max in Single Turn 3 | . 3 2 1 Machines Repaired . | . . . . Machines Dismantled . | . . . . Machines Sabotaged . | . . . . Overloaded Fab Kills . | . . . . Hacking | -11 -10 -10 -7 --------- Run | Yrd Mat Sub Rec Machines Accessed 10 | . 7 . 3 Terminals 9 | . 7 . 2 Fabricators . | . . . . Repair Stations . | . . . . Recycling Units 1 | . . . 1 Scanalyzers . | . . . . Garrison Access . | . . . . Total Hacks 25 | . 18 . 7 Successful 16 | . 14 . 2 Failed 9 | . 4 . 5 Catastrophic 2 | . . . 2 Database Lockouts . | . . . . Manual . | . . . . Terminals 23 | . 18 . 5 Fabricators . | . . . . Repair Stations . | . . . . Recycling Units 2 | . . . 2 Scanalyzers . | . . . . Garrison Access . | . . . . Terminal Hacks 16 | . 14 . 2 Record 5 | . 5 . . Robot Schematic 1 | . . . 1 Prototype ID Bank 4 | . 3 . 1 Locate Traps 3 | . 3 . . Surveillance Status 1 | . 1 . . Zone Layout 2 | . 2 . . Fabricator Hacks . | . . . . Repair Station Hacks . | . . . . Recycling Unit Hacks . | . . . . Scanalyzer . | . . . . Garrison Access Hacks . | . . . . Unauthorized Hacks . | . . . . Terminals . | . . . . Fabricators . | . . . . Repair Stations . | . . . . Recycling Units . | . . . . Scanalyzers . | . . . . Garrison Access . | . . . . Data Cores Recovered . | . . . . Used . | . . . . Hacking Detections 8 | . 6 . 2 Full Trace Events 2 | . 2 . . Feedback Events . | . . . . Feedback Blocked . | . . . . Robot Schematics Acquired 1 | . . . 1 Robots Built . | . . . . Authchips . | . . . . Time . | . . . . Total Robot Build Rating . | . . . . Part Schematics Acquired . | . . . . Parts Built . | . . . . Authchips . | . . . . Time . | . . . . Total Part Build Rating . | . . . . Parts Repaired . | . . . . Time . | . . . . Parts Recycled . | . . . . Recycled Matter . | . . . . Retrieved Matter . | . . . . Retrieved Components . | . . . . Parts Scanalyzed . | . . . . Part Schematics Acquired . | . . . . Parts Damaged . | . . . . Bothacking | -11 -10 -10 -7 ------------ Run | Yrd Mat Sub Rec Used RIF Installer . | . . . . Robots Hacked . | . . . . Non-combat . | . . . . Combat . | . . . . Robot Hacks Applied . | . . . . Relay Couplers Released . | . . . . Fabnet Peak Effective % . | . . . . Robots Rewired . | . . . . Allies Hacked . | . . . . Hacks Repelled . | . . . . Allies | -11 -10 -10 -7 -------- Run | Yrd Mat Sub Rec Total Allies . | . . . . Largest Group . | . . . . Highest-Rated Group . | . . . . Highest-Rated Ally . | . . . . Total Orders . | . . . . Ally Attacks . | . . . . Total Damage . | . . . . Kills . | . . . . Allies Corrupted . | . . . . Allies Melted . | . . . . Intel | -11 -10 -10 -7 ------- Run | Yrd Mat Sub Rec Robot Analysis Total . | . . . . Derelict Logs Recovered 1 | . . 1 . Drone Launches . | . . . . Drone Recoveries . | . . . . Exploration | -11 -10 -10 -7 ------------- Run | Yrd Mat Sub Rec Turns Passed 2152 | 94 1488 471 99 Spaces Moved 1645 | 46 1179 334 86 Core 4 | 4 . . . Treads . | . . . . Legs . | . . . . Wheels 1641 | 42 1179 334 86 Hover . | . . . . Flight . | . . . . Fastest Speed 50 | 50 80 80 95 Average Speed 93 | 83 93 93 95 Slowest Speed 95 | 95 95 95 95 Overloaded Moves . | . . . . Propulsion Burnouts . | . . . . Robots Hopped . | . . . . Cave-ins Triggered . | . . . . Exploration Rate (%) 34 | 4 97 26 12 Regions Visited 3 Branch Regions 2 Pre-discovered Areas . | . . . . Known Exits Taken . | . . . . Unknown Exits Taken 3 | 1 1 1 . Scrap Searched . | . . . . Spaces Dug . | . . . . Terrain Destroyed 340 | . 276 30 34 Melee . | . . . . Projectile . | . . . . AOE 340 | . 276 30 34 Terrain Rammed . | . . . . Walls Destroyed . | . . . . Machines Disabled . | . . . . Actions | -11 -10 -10 -7 --------- Run | Yrd Mat Sub Rec Total 1968 | 67 1385 425 91 Wait 154 | . 101 53 . Move 1642 | 45 1178 333 86 Hop . | . . . . Pick Up . | . . . . Fast Attach 16 | 7 8 1 . Attach . | . . . . Detach . | . . . . Swap . | . . . . Drop 5 | . 5 . . Fire 126 | 15 77 29 5 Melee 6 | . 6 . . Ram . | . . . . Kick . | . . . . Crush . | . . . . Escape Stasis . | . . . . Rewire . | . . . . Trap . | . . . . Miscellaneous 19 | . 10 9 . Route ------- -11/Scrapyard -10/Materials (discovered 5 exits: [*Mat x3] / [*Min] / [*Sub]) -10/Subcaves -7/Recycling History --------- Turn | Location | Event 1 | -11/Scrapyard | Upgraded with Utility slot (x1) 1 | -11/Scrapyard | Upgraded with Weapon slot (x3) 13 | -11/Scrapyard | Discovered new exit (range 15) 95 | -11/Scrapyard | Entered Materials 308 | -10/Materials | Build established: Gunner 488 | -10/Materials | Discovered new exit (range 16) 611 | -10/Materials | Reached level 2 778 | -10/Materials | Core integrity fell below 50% 814 | -10/Materials | Discovered new exit (range 9) 836 | -10/Materials | Reached level 3 928 | -10/Materials | Discovered new exit (range 8) 1312 | -10/Materials | Discovered new exit (range 13) 1475 | -10/Materials | Discovered new exit (range 10) 1495 | -10/Materials | Upgraded with Utility slot (x2) 1583 | -10/Materials | Entered Subcaves 1585 | -10/Subcaves | Reached level 4 1596 | -10/Subcaves | Upgraded with Propulsion slot (x1) 1643 | -10/Subcaves | Learned Materials stockpile data 1950 | -10/Subcaves | Discovered new exit (range 14) 1978 | -10/Subcaves | Core integrity fell below 20% 2017 | -10/Subcaves | Shifting Twisted Machinery released Sub. Monowheel 2018 | -10/Subcaves | Shifting Twisted Machinery released Mak. Shrapnel Gun 2054 | -10/Subcaves | Entered Recycling 2056 | -7/Recycling | Reached level 5 2153 | -7/Recycling | Destroyed by Y-54 Guardian with Flak Gun Last Messages --------------- Mak. Shrapnel Gun falls loose from the Twisted Machinery. LOCATION=UNKNOWN GOAL=ESCAPE 02056_ Reached level 5. 02071_ Connecting with Recycling Unit... 02071_ Current location identified: Recycling 02094_ Connecting with Terminal... >>Prototypes Downloading prototype IDs... Cld. Pulse Rifle Exp. Utility Shielding >>Schematic(S-27 Virus) Downloading schematic... S-27 Virus Tier: 4 Schematic downloaded. 02105_ Connecting with Terminal... 02112_ Material Compactor disabled. 02147_ Y-54 Guardian springs to life. 02150_ Chain reaction triggered in Imp. Deuterium Engine. Map ----- +----------------------------------------------------+ | ?????????????????????#?????????????????????#?????? | | ?????????????????????????????????????????????????? | | ??????????????????????????????????#???????#??????? | | ??????????????????????????????????#??????????????? | | ?????????????????????????????????????????????????? | | ??????????????????????????? ?????????????????????? | | ????????????????????#?????#????#?????????????????? | | ?????????????????????????????????????????#??#????? | | ???????????????????????? ??###########??????????#? | | ???????????????????????????# ############?? | | ????????????????????????#### T # #?? | | ???????????????????? ???# " + #?? | | ????????????????????????# "" "" # #?? | | ????????????????????????# "" "" #####+######?? | | ????????????????????????# "" """ #?# #?? | | ???????????????????"????# "" """" #?# """ #?? | | ????????????????????????# "T " #?# """ #?? | | ???????????????? ???????# "" #?# """ #?? | | ????????????????????????##"" #?# #?# | | ?????????????????????????#"" "" #?# """ #?? | | ??????????????????#??????#"" "" #?# """ #?? | | ????????????????##???????#" " ### """ #?# | | ???????????????? ?????## " ### #?? | | ??????????????????? ""###### #####" " ###?? | | ?????????? ##;;;;;# #???#"Y" #???? | | ?????????????????# @ + #???#""" #???# | | ?????????????? ??# #;;Y;;# #???## ##?#?? | | ?????????????????????# ;;; ##########??????#????#? | | ?????????????????????### ##??????????????#??????? | | ???????????????????????####?#????????????????????? | | ?????????????????????????????????????????????????? | | ?????????????????????????????????????????????????? | | ?????????????????????????????????????????????????? | | ???????????? ?????????????????????????#??????????? | | ?????????????????????????????????????????????????? | | ????????????????????????????????#????????????????? | | ?????????????????????????????????#??#????????????? | | ?????????????????????????????????????????????????? | | ?????????????????????#???????? ??????????????????? | | ?????????????????????????????????????????????????? | | ?????????????????????????????????????????????????? | | ?????????????????????????????????????????????????? | | ?????????????????????????????????????????????????? | | ?????????????????????????????????????????????????? | | ?????????????????????????????????????????????????? | | ?????????????????????????????????????????????????? | | ?????????????????????????????????????????????????? | | ?????????????????????????????????????????????????? | | ?????????????????????????????????????????????????? | | ?????????????????????????????????????????????????? | +----------------------------------------------------+ Best States ------------- Heat Dissipation 25 Energy Generation 10 Energy Capacity 250 Matter Stores 300 Matter Capacity 300 Sight Range 16 Terrain Scan Range 16 Terrain Scan Density 10 ECM Strength 1 Evasion (%) 44 Item Schematics ----------------- None Robot Schematics ------------------ S-27 Virus | -7/Recycling | Hacked Fabricated ------------ Nothing Alien Tech Used ----------------- None Achievements -------------- None Challenges ------------ None RPGLIKE | -11 -10 -10 -7 --------- Run | Yrd Mat Sub Rec Levels Raised 4 | . 2 1 1 XP Earned 10042 | 3000 4257 1600 1185 XP Spent 7500 | 2900 2600 2000 . Upgrades 12 | 4 4 4 . Propulsion Slot 1 | . . 1 . Utility Slot 3 | 1 2 . . Weapon Slot 3 | 3 . . . Mass Support 2 | . 2 . . Ranged Accuracy 3 | . . 3 . Protomatter Created 298 | . 156 142 . Integrity Restored 258 | . 135 123 . Core 258 | . 135 123 . Protomatter Decayed 40 | . . 40 . Game ------ Seed DiametricBeamShield Manual? 0 Play Time 00:18:50 Cumulative 6.1 hours Start 2025.04.23 @ 15:35:48 End 2025.04.23 @ 15:56:18 Sessions 1 Manual Loads 0 Difficulty Rogue Special Mode Winter2019/RPGLIKE Game No. 15 Rogue 15 Adventurer 0 Explorer 0 Win Type - Total 0 Types 0/0/0/0/0/0/0/0/0 Lore% 13 Gallery% 12 Achievement% 13 Wizard Run 0 Options --------- Layout 0 ASCII 0 Keyboard 0 Movement Mouse Keybinds 0 Fullscreen 2 Font 14/Terminus Map View 36x27 Zoom Use 95% Tactical HUD 1 Map Filters NONE Filters NONE Steam 1 RUN: 2de6bc78-1a93-4659-94e6-62cfd1685e01